Workbook

Sheet Budget Sheet (2)
A1: Budget (FY 2012-13)
A2: Name of Project: AANGAN - DAY CARE CENTRE
A4: All figures are in Indian rupees
A5: The centre has children numbering between 30-50 children everyday. Costs are calculated considering an avergae of 40 children everyday.
A7: Budget Amount | B7: In USD | C7: In INR
B8: 10000 | C8: =10000*48 -> 480000
A10: Budget Head | B10: Unit | C10: Calculation | D10: Yearly Amount (INR) | E10: Yearly Amount (USD) | F10: Remarks | G10: Proposed budget for Asha - Sta. Louise | I10: Remarks | J10: Funds from iPartner | K10: Funds from Royal Bak of Scotland (through CAF) - Rs. 184000 | L10: Funds from Max India Foundation - Rs. 24500 p.m. | M10: Funds from Delhi West Round table 50 - Rs. 15000 p.m.
A11: PROGRAMS COST (ACTIVITIES) | G11: INR | H11: USD
A13: Teaching & Learning material | B13: 40 children | C13: 40X12@Rs.100 | D13: =40*12*100 -> 48000 | E13: =D13/48 -> 1000 | F13: This is the informal education provided by Jamghat's Educators to 30-50 children in the centre. | G13: =40*8*100 -> 32000 | H13: =G13/48 -> 666.6666667 | I13: for 8 months
A14: Rent for space for conducting classes, providing bathing & Toilet facilities to street children | B14: 1 centre @ Rs. 17000 | C14: 1X12@Rs.17000 | D14: =1*12*17000 -> 204000 | E14: =D14/48 -> 4250 | G14: =7500*8 -> 60000 | H14: =G14/48 -> 1250 | I14: for 8 months | L14: =9500*12 -> 114000
A15: Formal Education (Regular schools & admission in National School of Open Learning) | B15: 10 children @ Rs. 1200 per child | C15: 10X12 @ Rs.1200 | D15: =10*12*1200 -> 144000 | E15: 3000 | G15: 0 | H15: 0 | I15: - | K15: =10*12*1200 -> 144000
A16: Educational outings & picnics | B16: 40 children, 4 in a year @ Rs.300 per child | C16: 40X4@Rs.300 | D16: =40*4*300 -> 48000 | E16: 1000 | G16: 8000 | H16: 166.6666667 | I16: for one quarter | K16: =40000 -> 40000
A17: Food | B17: 40 children @ Rs. 20 per day/child | C17: 40X312 days @ Rs.20 | D17: =40*312*20 -> 249600 | E17: 5200 | F17: Includes breakfast, luch & evening snacks provided to all children in centre | G17: 0 | H17: 0 | I17: - | L17: =12*5800 -> 69600 | M17: =12*15000 -> 180000
A18: Installation/maintenance of study furniture, mats, individual lockers for children etc. | B18: 1 centre @ Rs. 5000 per year | C18: 1@Rs.5000 | D18: =1*1*5000 -> 5000 | E18: 104.1666667 | G18: 0 | H18: 0 | I18: -
A19: Medical expenses | B19: 40 @ Rs. 50 per month/child | C19: 40X12 @Rs.50 | D19: =40*12*50 -> 24000 | E19: 500 | G19: =40*8*50 -> 16000 | H19: 333.3333333 | I19: for 8 months
A20: Major Medical Emergency | B20: 50 children @ Rs. 2000 per month | C20: 12months @Rs.2000 | D20: =12*2000 -> 24000 | E20: 500 | G20: =2000*8 -> 16000 | H20: 333.3333333 | I20: for 8 months | L20: =3*2000 -> 6000
A21: Counseling | B21: 1 | C21: 12 @ Rs. 7000 | D21: =12*7000 -> 84000 | E21: 1750 | G21: 0 | H21: 0 | I21: -
A22: Clothes | B22: Twice a year @ Rs.500 per child | C22: 2X40 @ Rs.500 | D22: =2*40*500 -> 40000 | E22: 833.3333333 | F22: Purchased every six months - 2 sets of summer/ winter clothes with shoes/slippers etc. | G22: =1*40*500 -> 20000 | H22: 416.6666667 | I22: for 8 months
A23: Toiletry | B23: 40 @ Rs.70 per child | C23: 40X12 @ Rs.70 | D23: =40*12*60 -> 28800 | E23: 600 | G23: =40*8*70 -> 22400 | H23: 466.6666667 | I23: for 8 months
A24: Sub Total A | D24: =SUM(D13:D23) -> 899400 | E24: =SUM(E13:E23) -> 18737.5 | G24: =SUM(G13:G23) -> 174400 | H24: 3633.333333 | K24: 184000 | L24: 189600 | M24: 180000
A26: HUMAN RESOURCES (SALARIES)
A28: Director | B28: 1 | C28: 12 months X 3 centres @ Rs. 9167 per centre | D28: =12*9167 -> 110004 | E28: =D28/48 -> 2291.75 | F28: Divided among all three budgets for Jamghat's three centres | G28: =8*9167 -> 73336 | H28: =G28/48 -> 1527.833333 | I28: for 8 months
A29: Programme Head - Jamghat | B29: 1 | C29: 12 months X 3 centres @ Rs. 6234 per centre | D29: =12*6234 -> 74808 | E29: 1558.5 | G29: =8*6234 -> 49872 | H29: 1039 | I29: for 8 months
A30: Driver | B30: 1 | C30: 12 months X 3 centres @ Rs. 2567 per centre | D30: =12*2567 -> 30804 | E30: 641.75 | G30: =8*2567 -> 20536 | H30: 427.8333333 | I30: for 8 months
A32: Programme Head - Aangan | B32: 1 | C32: 1 @ Rs. 18700 | D32: =12*18700 -> 224400 | E32: 4675 | G32: 0 | H32: 0 | I32: -
A33: Supervisor - Aangan | B33: 1 | C33: 1 @ Rs. 9350 | D33: =12*9350 -> 112200 | E33: 2337.5 | G33: =8*9350 -> 74800 | H33: 1558.333333 | I33: for 8 months
A34: Coordinator - Aangan | B34: 1 | C34: 1 @ Rs. 7700 | D34: =12*7700 -> 92400 | E34: 1925 | G34: =8*7700 -> 61600 | H34: 1283.333333 | I34: for 8 months
A35: Educator - Aangan | B35: 1 | C35: 1 @ Rs. 7700 | D35: =12*7700 -> 92400 | E35: 1925 | G35: 0 | H35: 0 | I35: - | L35: =12*7700 -> 92400
A36: Care taker + Cook - Aangan | B36: 1 | C36: 1 @ Rs. 7700 | D36: =12*7700 -> 92400 | E36: 1925 | G36: 0 | H36: 0 | I36: - | J36: =7000*12 -> 84000
A37: Sub Total B | D37: =SUM(D28:D36) -> 829416 | E37: =SUM(E28:E36) -> 17279.5 | G37: =SUM(G28:G36) -> 280144 | H37: 5836.333333 | K37: 0 | L37: 92400 | M37: 0
A39: ADMINISTRATION COST
A41: Maintenance | B41: 1 centre | C41: 12 months @ Rs. 1000 | D41: =12*1000 -> 12000 | E41: =D41/48 -> 250 | G41: 0 | H41: =G41/48 -> 0 | I41: - | L41: =12*1000 -> 12000
A42: Accountant costs | B42: 1 centre | C42: 12 months @ Rs. 5000 | D42: =12*5000 -> 60000 | E42: 1250 | G42: 0 | H42: 0 | I42: -
A43: Communication | B43: 1 centre | C43: 12 months @ Rs. 1000 | D43: =12*1000 -> 12000 | E43: 250 | G43: =1000*8 -> 8000 | H43: 166.6666667 | I43: for 8 months
A44: Office Travel | B44: 1 centre | C44: 12 months @ Rs. 1500 | D44: =12*1500 -> 18000 | E44: 375 | G44: =8*1500 -> 12000 | H44: 250 | I44: for 8 months
A45: Miscellaneous | B45: 1 centre | C45: 12 months @ Rs. 1500 | D45: =12*1500 -> 18000 | E45: 375 | G45: 0 | H45: 0 | I45: -
A46: Sub Total C | D46: =SUM(D41:D45) -> 120000 | E46: =SUM(E41:E45) -> 2500 | G46: =SUM(G41:G45) -> 20000 | H46: 416.6666667 | K46: 0 | L46: 12000 | M46: 0
A47: Total Budgetary Allocation (A+B+C) | D47: =D24+D37+D46 -> 1848816 | E47: =E24+E37+E46 -> 38517 | G47: =G24+G37+G46 -> 474544 | H47: 9886.333333 | K47: 184000 | L47: 294000 | M47: 180000
A49: Note: The centre receives some monthly donations from individuals, not exceeding Rs. 23000 per month.
